fUSD/lending_fUSD_20250320
["ID","MTS","AMOUNT","RATE_DAILY","PERIOD"]
[356457288,1742483451842,-188.02,0.00019658,2]
[356457289,1742483451852,-581.71,0.00019803,2]
[356457290,1742483451862,-3015.17527357,0.0001987,2]
[356457291,1742483451872,-514.0,0.0001997,2]
[356457292,1742483451882,-1000.0,0.0001997,2]
[356457293,1742483451891,-500.0,0.0001997,2]
[356457294,1742483451901,-32704.88964888,0.00019999,2]
[356457295,1742483451911,-299.42002204,0.0002,2]
[356457296,1742483451920,-10000.0,0.0002,2]
[356457297,1742483451930,-1473.99076248,0.0002,2]
[356457298,1742483451940,-4277.85941463,0.0002,2]
[356457299,1742483451949,-50000.0,0.0002,2]
[356457300,1742483451959,-7500.0,0.0002,2]
[356457301,1742483451968,-3847.19706403,0.0002,2]
[356457302,1742483451978,-45896.92238539,0.0002,2]
[356457303,1742483451988,-3950.0,0.0002,2]
[356457304,1742483451997,-1244.29005844,0.0002,2]
[356457305,1742483452008,-290.43786024,0.0002,2]
[356457306,1742483452018,-11772.09586853,0.0002,2]
[356457307,1742483452028,-1003.97126295,0.0002,2]
[356457308,1742483452037,-1732.73856378,0.0002,2]
[356457309,1742483452047,-66687.40757384,0.0002,2]
[356457310,1742483452057,-230866.57191563,0.0002,4]
[356457311,1742483452068,-7500.0,0.0002,2]
[356457312,1742483452078,-5627.06354896,0.0002,2]
[356457313,1742483452089,-20000.0,0.0002,30]
[356457314,1742483452098,-151.0,0.0002,2]
[356457315,1742483452108,-382.0,0.0002,2]
[356457316,1742483452118,-159.0,0.0002,2]
[356457317,1742483452128,-2000.0,0.0002,4]
[356457318,1742483452138,-151.07,0.0002,2]
[356457319,1742483452148,-151.07,0.0002,2]
[356457320,1742483452159,-151.07,0.0002,2]
[356457321,1742483452169,-151.07,0.0002,2]
[356457322,1742483452179,-151.07,0.0002,2]
[356457323,1742483452190,-151.07,0.0002,2]
[356457324,1742483452200,-151.07,0.0002,2]
[356457325,1742483452210,-151.07,0.0002,2]
[356457326,1742483452220,-151.07,0.0002,2]
[356457327,1742483452230,-151.07,0.0002,2]
[356457328,1742483452239,-151.07,0.0002,2]
[356457329,1742483452249,-151.07,0.0002,2]
[356457330,1742483452261,-151.07,0.0002,2]
[356457331,1742483452271,-151.07,0.0002,2]
[356457332,1742483452281,-151.07,0.0002,2]
[356457333,1742483452291,-151.07,0.0002,2]
[356457334,1742483452300,-151.07,0.0002,2]
[356457335,1742483452310,-151.07,0.0002,2]
[356457336,1742483452320,-151.07,0.0002,2]
[356457337,1742483452330,-151.07,0.0002,2]
[356457338,1742483452340,-151.07,0.0002,2]
[356457339,1742483452350,-151.07,0.0002,2]
[356457340,1742483452360,-151.07,0.0002,2]
[356457341,1742483452370,-151.07,0.0002,2]
[356457342,1742483452380,-151.07,0.0002,2]
[356457343,1742483452390,-151.07,0.0002,2]
[356457344,1742483452400,-151.07,0.0002,2]
[356457345,1742483452410,-151.07,0.0002,2]
[356457346,1742483452420,-151.07,0.0002,2]
[356457347,1742483452430,-151.07,0.0002,2]
[356457348,1742483452440,-501.407527,0.0002,2]
[356457349,1742483452449,-8944.23908669,0.0002001,2]
[356457350,1742483452459,-4931.55531889,0.0002001,2]
[356457351,1742483452470,-5772.0,0.0002001,2]
[356457352,1742483452479,-644.28,0.00020091,2]
[356457353,1742483452489,-1664.75875678,0.0002015,2]
[356457354,1742483452499,-797.73,0.00020477,2]
[356457355,1742483452511,-442.56,0.00020477,2]
[356457356,1742483452520,-174.47,0.00020548,2]
[356457357,1742483452530,-20554.83,0.00020548,2]
[356457358,1742483452540,-1280.0,0.00020686,2]
[356457359,1742483452549,-642.0,0.00020686,2]
[356457360,1742483452559,-2035.0,0.00020686,2]
[356457361,1742483452570,-1420.0,0.00020686,2]
[356457362,1742483452582,-572.0,0.00020686,2]
[356457363,1742483452591,-1272.0,0.00020686,2]
[356457364,1742483452601,-787.0,0.00020686,2]
[356457365,1742483452613,-1430.0,0.00020686,2]
[356457366,1742483452623,-542.0,0.00020686,2]
[356457367,1742483452633,-907.0,0.00020686,2]
[356457368,1742483452643,-4082.0,0.00020686,2]
[356457369,1742483452654,-151.0,0.00020686,2]
[356457370,1742483452665,-1014.0,0.00020686,2]
[356457371,1742483452675,-3938.0,0.00020686,2]
[356457372,1742483452685,-21798.14935013,0.000207,2]
[356457373,1742483452695,-7935.93,0.00020822,2]
[356457374,1742483452704,-20000.0,0.00021,2]
[356457375,1742483452714,-202545.28149511,0.00021,2]
[356457376,1742483452724,-1148.18035762,0.00021,2]
[356457377,1742483452733,-189.50147056,0.00021,2]
[356457378,1742483452743,-250.0,0.00021,2]
[356457379,1742483452753,-491.0,0.00021014,2]
[356457380,1742483452765,-6064.96,0.0002137,2]
[356457381,1742483452775,-4515.83192819,0.0002152,2]
[356457382,1742483452785,-517.83965,0.0002154,5]
[356457383,1742483452795,-2000.0,0.00021667,4]
[356457384,1742483452805,-7270.84893513,0.000217,2]
[356457385,1742483452815,-5434.0,0.000218,2]
[356457386,1742483452825,-296.51,0.00021917,2]
[356457387,1742483452835,-1962.80524,0.00021918,2]
[356457388,1742483452844,-246.30784077,0.00022,2]
[356457389,1742483452854,-500.0,0.00022,2]
[356457390,1742483452865,-458.77441958,0.00022,3]
[356457391,1742483452874,-581.71,0.00022067,2]
[356457392,1742483452884,-1016.39,0.000221,2]
[356457393,1742483452894,-230.82589247,0.0002211,2]
[356457394,1742483452904,-166.5,0.00022436,15]
[356457395,1742483452914,-34052.86294197,0.000225,2]
[356457396,1742483452924,-188.02,0.00022603,2]
[356457397,1742483452933,-502.35906312,0.0002271,2]
[356457398,1742483452943,-1568.40967475,0.00023,2]
[356457399,1742483452953,-300.0,0.00023,2]
[356457400,1742483452963,-233.00689951,0.00023,120]
[356457401,1742483452973,-161.10206231,0.00023,120]
[356457402,1742483452983,-400.96825845,0.0002301,2]
[356457403,1742483452992,-153.0,0.00023021,2]
[356457404,1742483453002,-153.0,0.00023021,2]
[356457405,1742483453013,-50066.31577487,0.000232,2]
[356457406,1742483453022,-296.51,0.00023287,2]
[356457407,1742483453032,-644.28,0.00023288,2]
[356457408,1742483453042,-2000.0,0.00023333,4]
[356457409,1742483453052,-200.0,0.000235,2]
[356457410,1742483453062,-1280.0,0.00023686,2]
[356457411,1742483453071,-642.0,0.00023686,2]
[356457412,1742483453081,-2035.0,0.00023686,2]
[356457413,1742483453091,-700.501,0.00023686,2]
[356457414,1742483453101,-572.0,0.00023686,2]
[356457415,1742483453111,-1272.0,0.00023686,2]
[356457416,1742483453121,-787.0,0.00023686,2]
[356457417,1742483453131,-1430.0,0.00023686,2]
[356457418,1742483453141,-542.0,0.00023686,2]
[356457419,1742483453151,-907.0,0.00023686,2]
[356457420,1742483453162,-4082.0,0.00023686,2]
[356457421,1742483453173,-151.0,0.00023686,2]
[356457422,1742483453185,-1014.0,0.00023686,2]
[356457423,1742483453196,-3938.0,0.00023686,2]
[356457424,1742483453206,-500.45,0.00023836,2]
[356457425,1742483453218,-59261.64595724,0.00024,2]
[356457426,1742483453228,-979.21616932,0.00024,2]
[356457427,1742483453238,-80765.89083064,0.00024,2]
[356457428,1742483453249,-1145.95,0.00024,5]
[356457429,1742483453261,-781.54732335,0.0002402,2]
[356457430,1742483453417,-442.66,0.00024137,2]
[356457431,1742483453428,-345.87,0.00024137,2]
[356457432,1742483453437,-442.66,0.00024137,2]
[356457433,1742483453447,-442.66,0.00024137,2]
[356457434,1742483453456,-442.66,0.00024137,2]
[356457435,1742483453466,-442.66,0.00024137,2]
[356457436,1742483453475,-452.64,0.00024137,2]
[356457437,1742483453485,-404.59210851,0.0002421,2]
[356457438,1742483453495,-3545.20408261,0.0002421,2]
[356457439,1742483453505,-581.71,0.00024331,2]
[356457440,1742483453516,-296.51,0.00024657,2]
[356457441,1742483453525,-1000.0,0.00024658,2]
[356457442,1742483453535,-500.0,0.00024658,2]
[356457443,1742483453544,-500.0,0.00024658,2]
[356457444,1742483453554,-500.0,0.00024658,2]
[356457445,1742483453564,-500.0,0.00024658,2]
[356457446,1742483453576,-500.0,0.00024658,2]
[356457447,1742483453585,-500.0,0.00024658,2]
[356457448,1742483453595,-500.0,0.00024658,2]
[356457449,1742483453605,-500.0,0.00024658,2]
[356457450,1742483453615,-454.38772859,0.00024658,2]
[356457451,1742483453625,-500.0,0.00024658,2]
[356457452,1742483453635,-500.0,0.00024658,2]
[356457453,1742483453644,-2000.0,0.00024686,2]
[356457454,1742483453654,-300.0,0.00024686,2]
[356457455,1742483453665,-354.13995269,0.000247,2]
[356457456,1742483453675,-156.48,0.00024712,30]
[356457457,1742483453685,-275745.774769,0.000248,3]
[356457458,1742483453696,-40062.5149535,0.000249,3]
[356457459,1742483453705,-199.05842172,0.00025,2]
[356457460,1742483453715,-1596.57520017,0.00025,2]
[356457461,1742483453725,-255.24615928,0.00025,2]
[356457462,1742483453734,-167.55114536,0.00025,2]
[356457463,1742483453744,-200.0,0.00025,2]
[356457464,1742483453753,-2918.57792804,0.00025,2]
[356457465,1742483453765,-1021.27078865,0.00025,2]
[356457466,1742483453775,-160.47269783,0.00025,2]
[356457467,1742483453784,-1262.0,0.00025,4]
[356457468,1742483453794,-7500.0,0.00025,2]
[356457469,1742483453804,-250.0,0.00025,2]
[356457470,1742483453814,-350.0,0.00025,2]
[356457471,1742483453823,-2000.0,0.00025,4]
[356457472,1742483453833,-11262.12462448,0.0002501,2]
[356457473,1742483453844,-3241.2454857,0.000251,2]
[356457474,1742483453854,-205.0,0.000253,10]
[356457475,1742483453864,-188.02,0.00025548,2]
[356457476,1742483453874,-2000.0,0.00025889,2]
[356457477,1742483453883,-9669.53072957,0.00025917,2]
[356457478,1742483453893,-9669.53072955,0.00025917,2]
[356457479,1742483453903,-9669.53072955,0.00025917,2]
[356457480,1742483453912,-575.14988112,0.0002599,2]
[356457481,1742483453922,-4332.44895906,0.00026,2]
[356457482,1742483453933,-4433.65,0.00026,2]
[356457483,1742483453943,-296.51,0.00026027,2]
[356457484,1742483453952,-1500.0,0.00026198,2]
[356457485,1742483453961,-26312.85393921,0.000264,2]
[356457486,1742483453971,-644.28,0.00026484,2]
[356457487,1742483453980,-517.83964,0.0002654,5]
[356457488,1742483453990,-581.71,0.00026594,2]
[356457489,1742483453999,-2000.0,0.00026667,4]
[356457490,1742483454010,-1280.0,0.00026686,2]
[356457491,1742483454020,-554.433,0.00026686,2]
[356457492,1742483454030,-2035.0,0.00026686,2]
[356457493,1742483454040,-566.0,0.00026686,2]
[356457494,1742483454049,-1266.0,0.00026686,2]
[356457495,1742483454059,-780.0,0.00026686,2]
[356457496,1742483454069,-1418.0,0.00026686,2]
[356457497,1742483454078,-538.767,0.00026686,2]
[356457498,1742483454088,-907.0,0.00026686,2]
[356457499,1742483454098,-4082.0,0.00026686,2]
[356457500,1742483454108,-151.0,0.00026686,2]
[356457501,1742483454117,-1014.0,0.00026686,2]
[356457502,1742483454127,-3938.0,0.00026686,2]
[356457503,1742483454137,-155.8,0.00026849,2]
[356457504,1742483454147,-430.07,0.00026849,2]
[356457505,1742483454156,-250.0,0.00027,2]
[356457506,1742483454166,-32336.00281558,0.00027,2]
[356457507,1742483454176,-1016.39,0.00027,2]
[356457508,1742483454186,-991.9902262,0.00027,2]
[356457509,1742483454196,-400.0,0.00027,2]
[356457510,1742483454205,-2662.865383,0.00027,2]
[356457511,1742483454215,-2000.0,0.00027092,2]
[356457512,1742483454224,-3519.71,0.00027123,2]
[356457513,1742483454234,-180.045446,0.00027241,2]
[356457514,1742483454243,-902.94,0.00027288,2]
[356457515,1742483454253,-305.84,0.00027288,2]
[356457516,1742483454264,-304.47,0.00027288,2]
[356457517,1742483454273,-167.83,0.00027288,2]
[356457518,1742483454283,-296.51,0.00027397,2]
[356457519,1742483454292,-500.0,0.00027397,15]
[356457520,1742483454302,-500.0,0.00027397,14]
[356457521,1742483454312,-331.37,0.00027397,2]
[356457522,1742483454323,-495.61,0.00027397,2]
[356457523,1742483454332,-168.85616952,0.00027397,5]
[356457524,1742483454342,-300.0,0.00027493,2]
[356457525,1742483454351,-192.63950119,0.000275,2]
[356457526,1742483454361,-65431.23186799,0.0002778,2]
[356457527,1742483454370,-160.0,0.00028,120]
[356457528,1742483454379,-9571.97,0.00028203,2]
[356457529,1742483454389,-2000.0,0.00028295,2]
[356457530,1742483454399,-219.12702944,0.00028333,4]
[356457531,1742483454409,-188.02,0.00028493,2]
[356457532,1742483454418,-150.0,0.00028574,2]
[356457533,1742483454428,-150.0,0.00028574,2]
[356457534,1742483454437,-150.0,0.00028574,2]
[356457535,1742483454447,-150.0,0.000286,2]
[356457536,1742483454457,-296.51,0.00028767,2]
[356457537,1742483454466,-331.37,0.00028767,2]
[356457538,1742483454475,-581.71,0.00028858,2]
[356457539,1742483454485,-450.0,0.00029,2]
[356457540,1742483454495,-4004.15,0.000292,2]
[356457541,1742483454504,-3000.0,0.000293,2]
[356457542,1742483454518,-2432.81375063,0.00029498,2]
[356457543,1742483454527,-956.49671625,0.00029608,2]
[356457544,1742483454536,-113558.0,0.00029609,5]
[356457545,1742483454546,-644.28,0.0002968,2]
[356457546,1742483454555,-1270.0,0.00029686,2]
[356457547,1742483454565,-2035.0,0.00029686,2]
[356457548,1742483454578,-1525.37,0.00029686,2]
[356457549,1742483454588,-151.0,0.00029686,2]
[356457550,1742483454597,-1014.0,0.00029686,2]
[356457551,1742483454607,-3938.0,0.00029686,2]
[356457552,1742483454617,-266965.29838658,0.0002988,2]
[356457553,1742483454627,-150.0,0.00029881,120]
[356457554,1742483454636,-75216.42255009,0.000299,2]
[356457555,1742483454646,-1994.023942,0.000299,2]
[356457556,1742483454656,-8500.0,0.00029936,6]
[356457557,1742483454665,-8500.0,0.00029936,6]
[356457558,1742483454674,-2826.31508417,0.00029936,6]
[356457559,1742483454683,-227.44907896,0.0002999,2]
[356457560,1742483454693,-2265.92018595,0.0003,2]
[356457561,1742483454702,-1739.34556846,0.0003,2]
[356457562,1742483454711,-1535.88871643,0.0003,2]
[356457563,1742483454721,-7334.62,0.0003,2]
[356457564,1742483454730,-168276.31909161,0.0003,30]
[356457565,1742483454739,-500.0,0.0003,2]
[356457566,1742483454750,-20066.68190228,0.0003,10]
[356457567,1742483454760,-5774.4595,0.0003,2]
[356457568,1742483454769,-173557.64,0.0003,28]
[356457569,1742483454779,-296.51,0.00030136,2]
[356457570,1742483454788,-331.37,0.00030137,2]
[356457571,1742483454797,-150.19,0.00030137,2]
[356457572,1742483454807,-154.98427098,0.00030137,5]
[356457573,1742483454816,-300.0,0.000303,2]
[356457574,1742483454826,-205.0,0.000303,3]
[356457575,1742483454835,-291.834391,0.000303,19]
[356457576,1742483454845,-2316.42134716,0.00030504,2]
[356457577,1742483454854,-205.0,0.00030608,30]
[356457578,1742483454864,-150.0,0.00030608,2]
[356457579,1742483454873,-211.26277972,0.00030608,120]
[356457580,1742483454882,-163.73009841,0.00030608,120]
[356457581,1742483454892,-205.0,0.00030608,30]
[356457582,1742483454902,-50000.0,0.00030608,13]
[356457583,1742483454911,-50000.0,0.00030608,14]
[356457584,1742483454921,-50000.0,0.00030608,29]
[356457585,1742483454931,-168.0,0.00030608,90]
[356457586,1742483454940,-1096.14,0.00030608,120]
[356457587,1742483454949,-150.0,0.00030608,2]
[356457588,1742483454958,-150.0,0.00030608,3]
[356457589,1742483454968,-1653.52498035,0.00030608,120]
[356457590,1742483454978,-1021.0,0.00030608,90]
[356457591,1742483454987,-1021.0,0.00030608,90]
[356457592,1742483454997,-1021.0,0.00030608,90]
[356457593,1742483455006,-1021.0,0.00030608,90]
[356457594,1742483455017,-1410.22738607,0.00030608,30]
[356457595,1742483455026,-395.0,0.00030608,90]
[356457596,1742483455036,-395.0,0.00030608,90]
[356457597,1742483455045,-1500.0,0.00030608,2]
[356457598,1742483455054,-1500.0,0.00030608,2]
[356457599,1742483455063,-1500.0,0.00030608,2]
[356457600,1742483455073,-397.89734009,0.00030608,2]
[356457601,1742483455083,-143315.30973567,0.00030608,30]
[356457602,1742483455093,-5652.02692369,0.00030782,2]
[356457603,1742483455102,-5000.0,0.00030782,2]
[356457604,1742483455112,-5000.0,0.00030782,2]
[356457605,1742483455122,-5000.0,0.00030782,2]
[356457606,1742483455131,-5000.0,0.00030782,2]
[356457607,1742483455141,-150.0,0.00030915,120]
[356457608,1742483455150,-500.0,0.00031,2]
[356457609,1742483455160,-153.0,0.00031,2]
[356457610,1742483455169,-150.19,0.00031023,2]
[356457611,1742483455179,-581.71,0.00031122,2]
[356457612,1742483455189,-1007.64323197,0.0003116,4]
[356457613,1742483455198,-150.0,0.0003117,2]
[356457614,1742483455208,-1016.39,0.000312,2]
[356457615,1742483455218,-296.51,0.00031506,2]
[356457616,1742483455228,-331.37,0.00031507,2]
[356457617,1742483455237,-517.83965,0.0003154,5]
[356457618,1742483455247,-150.19,0.0003191,2]
[356457619,1742483455256,-179.23506194,0.00031973,30]
[356457620,1742483455267,-38243.12,0.00032,2]
[356457621,1742483455277,-212.97,0.00032,7]
[356457622,1742483455287,-3000.0,0.000321,2]
[356457623,1742483455296,-179.23506194,0.00032137,30]
[356457624,1742483455306,-1224.0,0.00032271,2]
[356457625,1742483455315,-179.23506194,0.00032274,30]
[356457626,1742483455324,-150.0,0.00032321,7]
[356457627,1742483455334,-150.0,0.00032321,7]
[356457628,1742483455343,-150.0,0.00032321,7]
[356457629,1742483455353,-150.0,0.00032321,7]
[356457630,1742483455362,-150.0,0.00032321,7]
[356457631,1742483455372,-150.0,0.00032321,7]
[356457632,1742483455382,-150.0,0.00032321,7]
[356457633,1742483455391,-174.93,0.00032321,7]
[356457634,1742483455401,-179.23506194,0.00032438,30]
[356457635,1742483455410,-179.23506194,0.00032603,30]
[356457636,1742483455419,-1224.0,0.00032604,2]
[356457637,1742483455429,-430.07,0.00032646,2]
[356457638,1742483455439,-546.526,0.00032686,2]
[356457639,1742483455448,-151.0,0.00032686,2]
[356457640,1742483455458,-627.191,0.00032686,2]
[356457641,1742483455467,-3938.0,0.00032686,2]
[356457642,1742483455477,-179.23506194,0.0003274,30]
[356457643,1742483455486,-150.19,0.00032796,2]
[356457644,1742483455496,-6320.0,0.000328,5]
[356457645,1742483455505,-296.51,0.00032876,2]
[356457646,1742483455515,-483.8386214,0.00032876,2]
[356457647,1742483455525,-533.04569065,0.00032876,2]
[356457648,1742483455534,-407.85607071,0.00032876,2]
[356457649,1742483455544,-438.59020075,0.00032876,2]
[356457650,1742483455553,-500.0,0.00032876,2]
[356457651,1742483455563,-202.56793945,0.00032876,2]
[356457652,1742483455577,-500.0,0.00032876,2]
[356457653,1742483455586,-500.0,0.00032876,2]
[356457654,1742483455596,-500.0,0.00032876,2]
[356457655,1742483455607,-500.0,0.00032876,2]
[356457656,1742483455616,-500.0,0.00032876,2]
[356457657,1742483455626,-226.90470005,0.00032876,2]
[356457658,1742483455635,-500.0,0.00032876,2]
[356457659,1742483455646,-500.0,0.00032876,2]
[356457660,1742483455656,-500.0,0.00032876,2]
[356457661,1742483455666,-500.0,0.00032876,2]
[356457662,1742483455676,-500.0,0.00032876,2]
[356457663,1742483455685,-500.0,0.00032876,2]
[356457664,1742483455695,-500.0,0.00032876,2]
[356457665,1742483455704,-500.0,0.00032876,2]
[356457666,1742483455714,-500.0,0.00032876,2]
[356457667,1742483455723,-500.0,0.00032876,2]
[356457668,1742483455733,-500.0,0.00032876,2]
[356457669,1742483455742,-500.0,0.00032876,2]
[356457670,1742483455752,-500.0,0.00032876,2]
[356457671,1742483455763,-500.0,0.00032876,2]
[356457672,1742483455772,-500.0,0.00032876,2]
[356457673,1742483455782,-500.0,0.00032876,2]
[356457674,1742483455792,-500.0,0.00032876,2]
[356457675,1742483455801,-500.0,0.00032876,2]
[356457676,1742483455811,-500.0,0.00032876,2]
[356457677,1742483455821,-500.0,0.00032876,2]
[356457678,1742483455830,-500.0,0.00032876,2]
[356457679,1742483455840,-500.0,0.00032876,2]
[356457680,1742483455849,-500.0,0.00032876,2]
[356457681,1742483455859,-500.0,0.00032876,2]
[356457682,1742483455868,-500.0,0.00032876,2]
[356457683,1742483455877,-500.0,0.00032876,2]
[356457684,1742483455886,-623.13280081,0.00032876,2]
[356457685,1742483455896,-500.0,0.00032876,2]
[356457686,1742483455905,-500.0,0.00032876,2]
[356457687,1742483455915,-500.0,0.00032876,2]
[356457688,1742483455924,-500.0,0.00032876,2]
[356457689,1742483455933,-331.37,0.00032877,2]
[356457690,1742483455943,-151.0,0.00032877,7]
[356457691,1742483455953,-151.0,0.00032877,7]
[356457692,1742483455962,-151.0,0.00032877,7]
[356457693,1742483455971,-500.0,0.00032877,14]
[356457694,1742483455980,-644.28,0.00032877,2]
[356457695,1742483455990,-450.0,0.00032877,30]
[356457696,1742483455999,-179.23506194,0.00032904,30]
[356457697,1742483456010,-1224.0,0.00032937,2]
[356457698,1742483456020,-153.0,0.00032961,2]
[356457699,1742483456030,-1006.48127833,0.00032963,30]
[356457700,1742483456040,-550.0,0.00033,2]
[356457701,1742483456049,-517.912091,0.00033,14]
[356457702,1742483456059,-179.23506194,0.00033068,30]
[356457703,1742483456068,-4004.15,0.000331,2]
[356457704,1742483456078,-300.0,0.00033107,5]
[356457705,1742483456088,-179.23506194,0.00033205,30]
[356457706,1742483456097,-1224.0,0.00033269,2]
[356457707,1742483456107,-399.05756659,0.00033269,2]
[356457708,1742483456117,-179.23506194,0.0003337,30]
[356457709,1742483456126,-581.71,0.00033386,2]
[356457710,1742483456136,-291.83,0.000335,31]
[356457711,1742483456146,-291.83,0.000335,31]
[356457712,1742483456156,-291.83,0.000335,31]
[356457713,1742483456165,-291.83,0.000335,31]
[356457714,1742483456175,-291.83,0.000335,31]
[356457715,1742483456185,-291.83,0.000335,31]
[356457716,1742483456194,-291.83,0.000335,31]
[356457717,1742483456204,-291.83,0.000335,31]
[356457718,1742483456214,-291.83,0.000335,31]
[356457719,1742483456224,-291.83,0.000335,31]
[356457720,1742483456234,-291.83,0.000335,31]
[356457721,1742483456244,-291.83,0.000335,31]
[356457722,1742483456255,-179.23506194,0.00033507,30]
[356457723,1742483456266,-1224.0,0.00033602,2]
[356457724,1742483456275,-179.23506194,0.00033671,30]
[356457725,1742483456286,-150.19,0.00033683,2]
[356457726,1742483456296,-900.0,0.00033919,12]
[356457727,1742483456306,-900.0,0.00033919,12]
[356457728,1742483456316,-900.0,0.00033919,12]
[356457729,1742483456325,-900.0,0.00033919,12]
[356457730,1742483456335,-900.0,0.00033919,12]
[356457731,1742483456345,-900.0,0.00033919,12]
[356457732,1742483456355,-900.0,0.00033919,12]
[356457733,1742483456364,-900.0,0.00033919,12]
[356457734,1742483456375,-900.0,0.00033919,12]
[356457735,1742483456384,-900.0,0.00033919,12]
[356457736,1742483456394,-1224.0,0.00033935,2]
[356457737,1742483456404,-296.51,0.00034246,2]
[356457738,1742483456413,-1224.0,0.00034267,2]
[356457739,1742483456423,-1016.39,0.000344,14]
[356457740,1742483456434,-150.0,0.00034548,10]
[356457741,1742483456444,-150.19,0.00034569,2]
[356457742,1742483456453,-153.0,0.00034609,2]
[356457743,1742483456462,-3000.0,0.000348,2]
[356457744,1742483456472,-152.0,0.00034834,3]
[356457745,1742483456482,-600.0,0.00035,2]
[356457746,1742483456502,-500.45,0.00035068,2]
[356457747,1742483456513,-900.0,0.00035145,13]
[356457748,1742483456523,-900.0,0.00035145,13]
[356457749,1742483456534,-900.0,0.00035145,13]
[356457750,1742483456544,-900.0,0.00035145,13]
[356457751,1742483456554,-900.0,0.00035145,13]
[356457752,1742483456564,-900.0,0.00035145,13]
[356457753,1742483456576,-900.0,0.00035145,13]
[356457754,1742483456586,-900.0,0.00035145,13]
[356457755,1742483456595,-900.0,0.00035145,13]
[356457756,1742483456607,-900.0,0.00035145,13]
[356457757,1742483456616,-150.19,0.00035455,2]
[356457758,1742483456626,-152.0,0.00035477,4]
[356457759,1742483456635,-296.51,0.00035616,2]
[356457760,1742483456646,-411.72523883,0.00035616,7]
[356457761,1742483456656,-581.71,0.0003565,2]
[356457762,1742483456665,-151.0,0.00035686,2]
[356457763,1742483456675,-3938.0,0.00035686,2]
[356457764,1742483456685,-300.0,0.00035914,6]
[356457765,1742483456694,-168.0,0.00036,120]
[356457766,1742483456704,-152.0,0.0003612,5]
[356457767,1742483456713,-2208.862,0.00036142,44]
[356457768,1742483456722,-150.19,0.00036342,2]
[356457769,1742483456732,-517.83964,0.0003654,5]
[356457770,1742483456741,-291.83,0.000366,31]
[356457771,1742483456750,-291.83,0.000366,31]
[356457772,1742483456760,-291.83,0.000366,31]
[356457773,1742483456770,-291.83,0.000366,31]
[356457774,1742483456779,-291.83,0.000366,31]
[356457775,1742483456788,-291.83,0.000366,31]
[356457776,1742483456797,-291.83,0.000366,31]
[356457777,1742483456806,-291.83,0.000366,31]
[356457778,1742483456815,-291.83,0.000366,31]
[356457779,1742483456825,-291.83,0.000366,31]
[356457780,1742483456833,-291.83,0.000366,31]
[356457781,1742483456843,-291.83,0.000366,31]
[356457782,1742483456852,-291.83,0.000366,31]
[356457783,1742483456861,-291.83,0.000366,31]
[356457784,1742483456871,-291.83,0.000366,31]
[356457785,1742483456881,-291.83,0.000366,31]
[356457786,1742483456891,-291.83,0.000366,31]
[356457787,1742483457018,-291.83,0.000366,31]